[Event "*** Biggest EVER Titled Tuesday"]
[Site "Chess.com"]
[Date "2018.04.17"]
[Round "1"]
[White "josiwales"]
[Black "Paralinch"]
[Result "0-1"]
[WhiteElo "2421"]
[BlackElo "2814"]
[TimeControl "180+2"]
[EndTime "13:11:55 PDT"]
[Termination "Paralinch won by resignation"]

1. e4 {[%clk 0:02:59.7]} 1... c6 {[%clk 0:03:00.7]} 2. d4 {[%clk 0:02:59.1]}
2... d5 {[%clk 0:03:02.6]} 3. Nc3 {[%clk 0:03:00.6]} 3... dxe4 {[%clk
0:03:03.8]} 4. Nxe4 {[%clk 0:03:02.5]} 4... Bf5 {[%clk 0:03:04.9]} 5. Ng3 {[%clk
0:03:03.5]} 5... Bg6 {[%clk 0:03:06.2]} 6. h4 {[%clk 0:03:05.4]} 6... h6 {[%clk
0:03:07.2]} 7. Nf3 {[%clk 0:03:06.3]} 7... e6 {[%clk 0:03:07.3]} 8. Ne5 {[%clk
0:03:02.6]} 8... Bh7 {[%clk 0:03:06.8]} 9. Be3 {[%clk 0:03:01.2]} 9... Nd7
{[%clk 0:03:03.3]} 10. f4 {[%clk 0:02:50.4]} 10... Be7 {[%clk 0:03:01.5]} 11.
Bd3 {[%clk 0:02:49]} 11... Bxd3 {[%clk 0:02:56.7]} 12. Qxd3 {[%clk 0:02:50.9]}
12... Nxe5 {[%clk 0:02:57.4]} 13. fxe5 {[%clk 0:02:43.7]} 13... Bxh4 {[%clk
0:02:56.8]} 14. Bf2 {[%clk 0:02:43.8]} 14... Bxg3 {[%clk 0:02:51.4]} 15. Qxg3
{[%clk 0:02:41.8]} 15... Ne7 {[%clk 0:02:52.4]} 16. Qxg7 {[%clk 0:02:40.6]}
16... Rg8 {[%clk 0:02:53.3]} 17. Qxh6 {[%clk 0:02:41.9]} 17... Qd5 {[%clk
0:02:45.3]} 18. Qh3 {[%clk 0:02:08.7]} 18... O-O-O {[%clk 0:02:38.5]} 19. Qf3
{[%clk 0:02:07.7]} 19... Rxg2 {[%clk 0:02:35.1]} 20. Qxf7 {[%clk 0:01:53.7]}
20... Nf5 {[%clk 0:01:47.6]} 21. Rh7 {[%clk 0:01:32.4]} 21... Qe4+ {[%clk
0:01:47.4]} 22. Kf1 {[%clk 0:01:33.7]} 22... Rxf2+ {[%clk 0:01:48.5]} 23. Kxf2
{[%clk 0:01:34.7]} 23... Qxd4+ {[%clk 0:01:49.7]} 24. Kg2 {[%clk 0:01:18.6]}
24... Qg4+ {[%clk 0:01:47]} 25. Kh1 {[%clk 0:00:50.4]} 25... Ng3+ {[%clk
0:01:39.3]} 26. Kg1 {[%clk 0:00:50.1]} 26... Nf5+ {[%clk 0:01:17.3]} 27. Kh1
{[%clk 0:00:46.8]} 27... Qe4+ {[%clk 0:01:17.7]} 28. Kg1 {[%clk 0:00:40.7]}
28... Qd4+ {[%clk 0:01:18.6]} 29. Kg2 {[%clk 0:00:39.6]} 29... Ne3+ {[%clk
0:01:12.3]} 30. Kf3 {[%clk 0:00:34.8]} 30... Qb6 {[%clk 0:01:13.2]} 31. Qxe6+
{[%clk 0:00:32.2]} 31... Kb8 {[%clk 0:01:14.6]} 32. Qe7 {[%clk 0:00:30.1]} 32...
Nd5 {[%clk 0:01:12.8]} 33. Qf7 {[%clk 0:00:22.5]} 33... Qe3+ {[%clk 0:01:08.3]}
34. Kg4 {[%clk 0:00:21.6]} 34... Qe4+ {[%clk 0:01:08.8]} 35. Kg3 {[%clk
0:00:23]} 35... Qxe5+ {[%clk 0:01:07.1]} 36. Kg2 {[%clk 0:00:22.6]} 36... Qe4+
{[%clk 0:01:05.5]} 37. Kg3 {[%clk 0:00:23.6]} 37... Qe3+ {[%clk 0:01:05.8]} 38.
Kg4 {[%clk 0:00:24.7]} 38... Qe4+ {[%clk 0:00:42.7]} 39. Kg3 {[%clk 0:00:25.4]}
39... Qe5+ {[%clk 0:00:44.2]} 40. Kf3 {[%clk 0:00:21.4]} 40... Qxb2 {[%clk
0:00:41.5]} 41. Re1 {[%clk 0:00:19.4]} 41... Qc3+ {[%clk 0:00:41.7]} 42. Kf2
{[%clk 0:00:20.6]} 42... Qxc2+ {[%clk 0:00:41.9]} 43. Re2 {[%clk 0:00:22]} 43...
Qc5+ {[%clk 0:00:42.9]} 44. Kf3 {[%clk 0:00:22.7]} 44... Qc3+ {[%clk 0:00:38.2]}
45. Kf2 {[%clk 0:00:24.1]} 45... Qd4+ {[%clk 0:00:38.2]} 46. Kf3 {[%clk
0:00:25.5]} 46... Qf4+ {[%clk 0:00:32.2]} 47. Qxf4+ {[%clk 0:00:25.1]} 47...
Nxf4 {[%clk 0:00:33.4]} 48. Kxf4 {[%clk 0:00:27]} 48... a5 {[%clk 0:00:33.6]}
49. Ree7 {[%clk 0:00:27.8]} 49... Rd4+ {[%clk 0:00:34.7]} 50. Ke3 {[%clk
0:00:27.6]} 50... Rb4 {[%clk 0:00:35.8]} 51. Kd3 {[%clk 0:00:28.9]} 51... Ka7
{[%clk 0:00:36.5]} 52. Kc3 {[%clk 0:00:29.9]} 52... Ka6 {[%clk 0:00:38]} 53. Rh8
{[%clk 0:00:30.5]} 53... Rb1 {[%clk 0:00:32.7]} 54. Ra8+ {[%clk 0:00:30.5]}
54... Kb6 {[%clk 0:00:33.9]} 55. Rb8 {[%clk 0:00:31.6]} 55... Ka7 {[%clk
0:00:35.2]} 56. Rh8 {[%clk 0:00:31.7]} 56... Kb6 {[%clk 0:00:35.6]} 57. Rh2
{[%clk 0:00:31.5]} 57... Rc1+ {[%clk 0:00:35.5]} 58. Kb2 {[%clk 0:00:32.1]}
58... Rc5 {[%clk 0:00:36.1]} 59. Rhh7 {[%clk 0:00:32.8]} 59... Rb5+ {[%clk
0:00:37.5]} 60. Kc3 {[%clk 0:00:34.1]} 60... Ka6 {[%clk 0:00:39.1]} 61. Re8
{[%clk 0:00:35.4]} 61... Rb1 {[%clk 0:00:37.7]} 62. Rh2 {[%clk 0:00:32.8]} 62...
Rc1+ {[%clk 0:00:35.7]} 63. Rc2 {[%clk 0:00:33.9]} 63... Rh1 {[%clk 0:00:36.4]}
64. Rb2 {[%clk 0:00:33.4]} 64... b5 {[%clk 0:00:35]} 65. Re6 {[%clk 0:00:27.5]}
65... Kb6 {[%clk 0:00:30.3]} 66. a4 {[%clk 0:00:25]} 66... Rh3+ {[%clk
0:00:28.8]} 67. Kc2 {[%clk 0:00:25.6]} 67... b4 {[%clk 0:00:27.4]} 68. Re5
{[%clk 0:00:19.8]} 68... Ra3 {[%clk 0:00:26.3]} 69. Rb1 {[%clk 0:00:10.3]} 69...
Rxa4 {[%clk 0:00:26.8]} 70. Rh1 {[%clk 0:00:11.7]} 70... Ra2+ {[%clk 0:00:27.2]}
71. Kb3 {[%clk 0:00:12.6]} 71... Ra3+ {[%clk 0:00:28.3]} 72. Kc4 {[%clk
0:00:13.3]} 72... Rc3+ {[%clk 0:00:28.5]} 73. Kd4 {[%clk 0:00:14.5]} 73... c5+
{[%clk 0:00:28.8]} 74. Kd5 {[%clk 0:00:15.2]} 74... Kb5 {[%clk 0:00:28.8]} 75.
Rh8 {[%clk 0:00:15]} 75... Rd3+ {[%clk 0:00:29.7]} 76. Ke4 {[%clk 0:00:16.3]}
76... Rd4+ {[%clk 0:00:28.3]} 77. Ke3 {[%clk 0:00:17.5]} 77... Rc4 {[%clk
0:00:26.2]} 78. Rb8+ {[%clk 0:00:17.1]} 78... Ka4 {[%clk 0:00:27.5]} 79. Rc8
{[%clk 0:00:16.9]} 79... Rc3+ {[%clk 0:00:26.2]} 80. Kd2 {[%clk 0:00:17.7]}
80... c4 {[%clk 0:00:26.8]} 81. Rcc5 {[%clk 0:00:15.6]} 81... Kb3 {[%clk
0:00:27.2]} 82. Rxa5 {[%clk 0:00:16.2]} 82... Rh3 {[%clk 0:00:25.1]} 83. Rab5
{[%clk 0:00:08.7]} 83... c3+ {[%clk 0:00:25.9]} 84. Ke2 {[%clk 0:00:08.6]} 84...
c2 {[%clk 0:00:26.9]} 85. Rec5 {[%clk 0:00:09.6]} 85... Rh1 {[%clk 0:00:24.9]}
86. Kd2 {[%clk 0:00:08.3]} 86... Rd1+ {[%clk 0:00:25.4]} 87. Ke2 {[%clk
0:00:09.3]} 87... c1=Q {[%clk 0:00:26.3]} 88. Rxc1 {[%clk 0:00:09.5]} 88... Rxc1
{[%clk 0:00:28.2]} 89. Kd2 {[%clk 0:00:11.4]} 89... Rc8 {[%clk 0:00:28.6]} 0-1

[Event "*** Biggest EVER Titled Tuesday"]
[Site "Chess.com"]
[Date "2018.04.17"]
[Round "2"]
[White "Orest_Vovk"]
[Black "ChessMavenYeti"]
[Result "1-0"]
[WhiteElo "2241"]
[BlackElo "2100"]
[TimeControl "180+2"]
[EndTime "13:16:05 PDT"]
[Termination "Orest_Vovk won by checkmate"]

1. g4 {[%clk 0:02:59.6]} 1... d5 {[%clk 0:03:00.1]} 2. h3 {[%clk 0:03:00.3]}
2... e5 {[%clk 0:03:00.3]} 3. Bg2 {[%clk 0:03:01.5]} 3... c6 {[%clk 0:03:00.3]}
4. d4 {[%clk 0:03:01.7]} 4... e4 {[%clk 0:03:00.3]} 5. c4 {[%clk 0:03:02.6]}
5... Bd6 {[%clk 0:03:00.5]} 6. Nc3 {[%clk 0:03:03.9]} 6... Ne7 {[%clk
0:03:00.7]} 7. Qb3 {[%clk 0:03:04.9]} 7... O-O {[%clk 0:02:57.7]} 8. Bg5 {[%clk
0:03:05.6]} 8... f6 {[%clk 0:02:51.9]} 9. Bd2 {[%clk 0:03:06.1]} 9... Kh8 {[%clk
0:02:52.3]} 10. e3 {[%clk 0:02:57.8]} 10... Bc7 {[%clk 0:02:46.2]} 11. Nge2
{[%clk 0:02:56.6]} 11... a6 {[%clk 0:02:46.2]} 12. a4 {[%clk 0:02:56.4]} 12...
Nd7 {[%clk 0:02:36.8]} 13. cxd5 {[%clk 0:02:55.4]} 13... cxd5 {[%clk 0:02:37]}
14. Nxd5 {[%clk 0:02:56.3]} 14... Nxd5 {[%clk 0:02:38]} 15. Qxd5 {[%clk
0:02:56.6]} 15... Re8 {[%clk 0:02:31.5]} 16. Bxe4 {[%clk 0:02:53.2]} 16... Qe7
{[%clk 0:02:28.6]} 17. Bd3 {[%clk 0:02:48.2]} 17... Nb6 {[%clk 0:02:26.4]} 18.
Qh5 {[%clk 0:02:48.1]} 18... Be6 {[%clk 0:02:23.7]} 19. Qxh7# {[%clk 0:02:47.9]}
1-0

[Event "*** Biggest EVER Titled Tuesday"]
[Site "Chess.com"]
[Date "2018.04.17"]
[Round "2"]
[White "Boryboy"]
[Black "Annawel"]
[Result "0-1"]
[WhiteElo "2555"]
[BlackElo "2875"]
[TimeControl "180+2"]
[EndTime "13:16:43 PDT"]
[Termination "Annawel won by resignation"]

1. Nf3 {[%clk 0:03:01.7]} 1... Nf6 {[%clk 0:03:01]} 2. g3 {[%clk 0:03:01.5]}
2... g6 {[%clk 0:03:01.9]} 3. Bg2 {[%clk 0:03:01.3]} 3... Bg7 {[%clk 0:03:03.5]}
4. b3 {[%clk 0:03:02.4]} 4... O-O {[%clk 0:03:05.4]} 5. Bb2 {[%clk 0:03:03.1]}
5... d6 {[%clk 0:03:05.6]} 6. c4 {[%clk 0:03:02.6]} 6... e5 {[%clk 0:03:06.2]}
7. Nc3 {[%clk 0:03:01.2]} 7... Nc6 {[%clk 0:03:06.1]} 8. O-O {[%clk 0:02:58.6]}
8... Rb8 {[%clk 0:03:05]} 9. d4 {[%clk 0:02:55.8]} 9... exd4 {[%clk 0:02:55.6]}
10. Nxd4 {[%clk 0:02:56.6]} 10... Bd7 {[%clk 0:02:57.3]} 11. Qd2 {[%clk
0:02:55.5]} 11... Re8 {[%clk 0:02:54.7]} 12. Rad1 {[%clk 0:02:48]} 12... Ne5
{[%clk 0:02:23.1]} 13. Rfe1 {[%clk 0:02:43.6]} 13... h5 {[%clk 0:02:21.1]} 14.
Nd5 {[%clk 0:02:37.2]} 14... h4 {[%clk 0:02:11.6]} 15. Nxf6+ {[%clk 0:02:35]}
15... Qxf6 {[%clk 0:02:09.5]} 16. Nf3 {[%clk 0:02:35.8]} 16... Nxf3+ {[%clk
0:02:09.9]} 0-1

[Event "*** Biggest EVER Titled Tuesday"]
[Site "Chess.com"]
[Date "2018.04.17"]
[Round "2"]
[White "Fandorine"]
[Black "belisarius64"]
[Result "1-0"]
[WhiteElo "2710"]
[BlackElo "2504"]
[TimeControl "180+2"]
[EndTime "13:18:45 PDT"]
[Termination "Fandorine won by resignation"]

1. e4 {[%clk 0:03:01.9]} 1... c5 {[%clk 0:02:59.6]} 2. Nf3 {[%clk 0:03:02.5]}
2... e6 {[%clk 0:03:01]} 3. d3 {[%clk 0:03:00.8]} 3... Nc6 {[%clk 0:03:01]} 4.
g3 {[%clk 0:03:01.8]} 4... Nf6 {[%clk 0:03:02.6]} 5. Bg2 {[%clk 0:03:02.6]} 5...
d6 {[%clk 0:03:04]} 6. O-O {[%clk 0:03:03.1]} 6... Be7 {[%clk 0:03:05.9]} 7. Ng5
{[%clk 0:03:04.4]} 7... O-O {[%clk 0:03:05]} 8. f4 {[%clk 0:03:05.2]} 8... d5
{[%clk 0:02:55.8]} 9. e5 {[%clk 0:02:45.6]} 9... Nd7 {[%clk 0:02:49.5]} 10. Nf3
{[%clk 0:02:36.5]} 10... d4 {[%clk 0:02:36.7]} 11. Nbd2 {[%clk 0:02:34.8]} 11...
Qc7 {[%clk 0:02:32.1]} 12. Ne4 {[%clk 0:02:34.4]} 12... b5 {[%clk 0:02:31.7]}
13. a4 {[%clk 0:02:34.1]} 13... b4 {[%clk 0:02:29.3]} 14. Nfd2 {[%clk
0:02:20.1]} 14... Bb7 {[%clk 0:02:30.1]} 15. Nc4 {[%clk 0:02:19.4]} 15... f6
{[%clk 0:02:29]} 16. Ned6 {[%clk 0:02:07.7]} 16... Rab8 {[%clk 0:01:56.9]} 17.
Nxb7 {[%clk 0:02:02.6]} 17... Rxb7 {[%clk 0:01:58.8]} 18. Qf3 {[%clk 0:01:33.3]}
18... Nd8 {[%clk 0:01:58.5]} 19. exf6 {[%clk 0:01:32.4]} 19... Nxf6 {[%clk
0:01:56.1]} 20. f5 {[%clk 0:01:33]} 20... exf5 {[%clk 0:01:53.7]} 21. Qxf5
{[%clk 0:01:29.6]} 21... Rb8 {[%clk 0:01:53.9]} 22. Bf4 {[%clk 0:01:30.5]} 22...
Qc8 {[%clk 0:01:40.1]} 23. Bxb8 {[%clk 0:01:30.3]} 23... Qxb8 {[%clk 0:01:42]}
24. Rae1 {[%clk 0:01:28.4]} 24... Rf7 {[%clk 0:01:42.6]} 25. Bd5 {[%clk
0:01:27.4]} 25... Nxd5 {[%clk 0:01:42]} 26. Qxd5 {[%clk 0:01:28.9]} 26... Qc7
{[%clk 0:01:42.7]} 27. Ne5 {[%clk 0:01:27.7]} 1-0

[Event "*** Biggest EVER Titled Tuesday"]
[Site "Chess.com"]
[Date "2018.04.17"]
[Round "2"]
[White "jk13"]
[Black "Thee-Chessboy"]
[Result "1-0"]
[WhiteElo "2514"]
[BlackElo "2294"]
[TimeControl "180+2"]
[EndTime "13:18:48 PDT"]
[Termination "jk13 won by resignation"]

1. e4 {[%clk 0:03:01.9]} 1... c5 {[%clk 0:03:00]} 2. c3 {[%clk 0:03:02.4]} 2...
d5 {[%clk 0:02:59]} 3. exd5 {[%clk 0:03:03.6]} 3... Qxd5 {[%clk 0:02:59.8]} 4.
d4 {[%clk 0:03:05.5]} 4... cxd4 {[%clk 0:03:01.1]} 5. cxd4 {[%clk 0:03:05.8]}
5... Nc6 {[%clk 0:03:02.1]} 6. Nf3 {[%clk 0:03:07.2]} 6... Bg4 {[%clk
0:02:54.8]} 7. Nc3 {[%clk 0:03:07.7]} 7... Qh5 {[%clk 0:02:42.8]} 8. d5 {[%clk
0:02:56.8]} 8... Ne5 {[%clk 0:02:29.2]} 9. Bb5+ {[%clk 0:02:50.8]} 9... Bd7
{[%clk 0:02:27.8]} 10. Bxd7+ {[%clk 0:02:48.6]} 10... Nxd7 {[%clk 0:02:28.2]}
11. O-O {[%clk 0:02:46.1]} 11... a6 {[%clk 0:02:25.7]} 12. Re1 {[%clk
0:02:44.5]} 12... Ngf6 {[%clk 0:02:26.4]} 13. Bf4 {[%clk 0:02:33.9]} 13... b5
{[%clk 0:02:03.8]} 14. Qd4 {[%clk 0:02:27.8]} 14... b4 {[%clk 0:01:46.1]} 15.
Ne4 {[%clk 0:02:14.8]} 15... Nxe4 {[%clk 0:01:37.3]} 16. Rxe4 {[%clk 0:02:13.4]}
16... Nf6 {[%clk 0:01:35.6]} 17. Re5 {[%clk 0:02:10.7]} 17... Qg4 {[%clk
0:01:34.1]} 18. h3 {[%clk 0:02:05.9]} 18... Qd7 {[%clk 0:01:30.9]} 19. Rd1
{[%clk 0:01:56]} 19... g6 {[%clk 0:01:30.2]} 20. d6 {[%clk 0:01:42.7]} 20... e6
{[%clk 0:01:30.4]} 21. Ree1 {[%clk 0:01:38.3]} 21... Bg7 {[%clk 0:01:30.7]} 22.
Be5 {[%clk 0:01:34.7]} 1-0

[Event "*** Biggest EVER Titled Tuesday"]
[Site "Chess.com"]
[Date "2018.04.17"]
[Round "2"]
[White "maximlavrov"]
[Black "WinnerOleg"]
[Result "1-0"]
[WhiteElo "2464"]
[BlackElo "2321"]
[TimeControl "180+2"]
[EndTime "13:18:50 PDT"]
[Termination "maximlavrov won by resignation"]

1. g3 {[%clk 0:03:01.9]} 1... d5 {[%clk 0:02:57.8]} 2. Nf3 {[%clk 0:03:00.9]}
2... Nf6 {[%clk 0:02:59.2]} 3. Bg2 {[%clk 0:03:02.4]} 3... g6 {[%clk 0:03:00.3]}
4. O-O {[%clk 0:03:03.4]} 4... Bg7 {[%clk 0:03:01.8]} 5. d3 {[%clk 0:03:05.3]}
5... O-O {[%clk 0:03:02.9]} 6. Nbd2 {[%clk 0:03:06.8]} 6... b6 {[%clk
0:03:01.5]} 7. e4 {[%clk 0:03:07]} 7... dxe4 {[%clk 0:03:03.4]} 8. dxe4 {[%clk
0:03:08.9]} 8... Bb7 {[%clk 0:03:04.2]} 9. e5 {[%clk 0:03:10]} 9... Ng4 {[%clk
0:02:45]} 10. Re1 {[%clk 0:03:10.1]} 10... e6 {[%clk 0:02:26.5]} 11. Qe2 {[%clk
0:03:01.4]} 11... Nc6 {[%clk 0:02:23.5]} 12. c3 {[%clk 0:02:57.2]} 12... a5
{[%clk 0:01:56.2]} 13. h3 {[%clk 0:02:55.7]} 13... Nh6 {[%clk 0:01:56.8]} 14.
Ne4 {[%clk 0:02:47.1]} 14... Nf5 {[%clk 0:01:38.7]} 15. Bg5 {[%clk 0:02:46.9]}
15... Qc8 {[%clk 0:01:13]} 16. Nf6+ {[%clk 0:02:43.8]} 16... Kh8 {[%clk
0:00:54.1]} 17. Rad1 {[%clk 0:02:43.8]} 17... h6 {[%clk 0:00:42.9]} 18. Bf4
{[%clk 0:02:44]} 18... Rd8 {[%clk 0:00:22.1]} 19. g4 {[%clk 0:02:44.7]} 19...
Nfe7 {[%clk 0:00:20]} 20. Qe3 {[%clk 0:02:46.1]} 20... g5 {[%clk 0:00:16.1]} 21.
Bxg5 {[%clk 0:02:47.2]} 21... hxg5 {[%clk 0:00:18]} 22. Qxg5 {[%clk 0:02:47.7]}
22... Rxd1 {[%clk 0:00:19.9]} 23. Qh5+ {[%clk 0:02:48.2]} 1-0

[Event "*** Biggest EVER Titled Tuesday"]
[Site "Chess.com"]
[Date "2018.04.17"]
[Round "2"]
[White "Shtembuliak"]
[Black "David_Paravyan"]
[Result "1-0"]
[WhiteElo "2635"]
[BlackElo "2681"]
[TimeControl "180+2"]
[EndTime "13:19:15 PDT"]
[Termination "Shtembuliak won by resignation"]

1. c4 {[%clk 0:03:01.9]} 1... Nf6 {[%clk 0:02:56.2]} 2. Nc3 {[%clk 0:02:55.9]}
2... c5 {[%clk 0:02:47.4]} 3. Nf3 {[%clk 0:02:54.8]} 3... d5 {[%clk 0:02:47.5]}
4. cxd5 {[%clk 0:02:55]} 4... Nxd5 {[%clk 0:02:49.1]} 5. e4 {[%clk 0:02:53.5]}
5... Nb4 {[%clk 0:02:48.4]} 6. Bc4 {[%clk 0:02:50.4]} 6... Nd3+ {[%clk
0:02:47.2]} 7. Ke2 {[%clk 0:02:48.8]} 7... Nf4+ {[%clk 0:02:48.2]} 8. Kf1 {[%clk
0:02:48.6]} 8... Ne6 {[%clk 0:02:48.9]} 9. b4 {[%clk 0:02:46.5]} 9... g6 {[%clk
0:02:47.6]} 10. bxc5 {[%clk 0:02:45.1]} 10... Bg7 {[%clk 0:02:48.7]} 11. Bxe6
{[%clk 0:02:43]} 11... Bxe6 {[%clk 0:02:50.4]} 12. d4 {[%clk 0:02:44.5]} 12...
Nc6 {[%clk 0:02:48.7]} 13. Be3 {[%clk 0:02:42.2]} 13... Qa5 {[%clk 0:02:46.5]}
14. Rc1 {[%clk 0:02:23.5]} 14... Rd8 {[%clk 0:02:46.3]} 15. d5 {[%clk
0:02:18.5]} 15... Bxc3 {[%clk 0:02:43.4]} 16. Qc2 {[%clk 0:02:15.9]} 16... Bf6
{[%clk 0:02:05.8]} 17. dxe6 {[%clk 0:02:15.8]} 17... fxe6 {[%clk 0:02:07.3]} 18.
h4 {[%clk 0:02:06.4]} 18... Nb4 {[%clk 0:01:55.2]} 19. Qc4 {[%clk 0:02:03.9]}
19... Nxa2 {[%clk 0:01:52.3]} 20. Rb1 {[%clk 0:01:47.9]} 20... Nc3 {[%clk
0:01:50.5]} 21. Rc1 {[%clk 0:01:44.5]} 21... Qb5 {[%clk 0:01:16.8]} 22. Rxc3
{[%clk 0:01:37.2]} 22... Rd1+ {[%clk 0:01:16.9]} 23. Ne1 {[%clk 0:01:34.2]}
23... Bxc3 {[%clk 0:01:16.9]} 24. Qxb5+ {[%clk 0:01:30.9]} 24... Kf7 {[%clk
0:01:16]} 25. Ke2 {[%clk 0:01:28.6]} 25... Rhd8 {[%clk 0:01:16.4]} 26. Qb3
{[%clk 0:01:22.7]} 1-0

[Event "*** Biggest EVER Titled Tuesday"]
[Site "Chess.com"]
[Date "2018.04.17"]
[Round "2"]
[White "Fighterman91"]
[Black "Kriari"]
[Result "0-1"]
[WhiteElo "2599"]
[BlackElo "2764"]
[TimeControl "180+2"]
[EndTime "13:19:17 PDT"]
[Termination "Kriari won by resignation"]

1. e4 {[%clk 0:03:01.9]} 1... e5 {[%clk 0:03:00.7]} 2. Nf3 {[%clk 0:03:02.6]}
2... Nc6 {[%clk 0:03:02.2]} 3. d4 {[%clk 0:03:03.2]} 3... exd4 {[%clk
0:03:04.1]} 4. Nxd4 {[%clk 0:03:05.1]} 4... Bb4+ {[%clk 0:03:04.7]} 5. c3 {[%clk
0:03:06]} 5... Bc5 {[%clk 0:03:06.2]} 6. Be3 {[%clk 0:03:07.7]} 6... Bb6 {[%clk
0:03:07.5]} 7. Nf5 {[%clk 0:03:09.3]} 7... g6 {[%clk 0:03:08.9]} 8. Bxb6 {[%clk
0:03:10.4]} 8... axb6 {[%clk 0:03:10.8]} 9. Ne3 {[%clk 0:03:12]} 9... Nf6 {[%clk
0:03:12.4]} 10. f3 {[%clk 0:03:12.8]} 10... O-O {[%clk 0:03:14.1]} 11. c4 {[%clk
0:03:11.7]} 11... d5 {[%clk 0:03:15.4]} 12. cxd5 {[%clk 0:03:08.2]} 12... Nxe4
{[%clk 0:03:16.8]} 13. fxe4 {[%clk 0:03:08.5]} 13... Qh4+ {[%clk 0:03:18]} 14.
Kd2 {[%clk 0:02:54.2]} 14... Qxe4 {[%clk 0:03:15.7]} 15. Bd3 {[%clk 0:02:55.2]}
15... Qd4 {[%clk 0:02:47.4]} 16. Nc3 {[%clk 0:02:08.9]} 16... Re8 {[%clk
0:02:37.5]} 17. Re1 {[%clk 0:01:23.4]} 17... Nb4 {[%clk 0:02:38.3]} 18. Qb1
{[%clk 0:01:19.7]} 18... Bf5 {[%clk 0:02:27.8]} 19. Nxf5 {[%clk 0:01:20.1]}
19... gxf5 {[%clk 0:02:29.6]} 20. Re2 {[%clk 0:00:42]} 20... f4 {[%clk
0:02:26.8]} 21. Ne4 {[%clk 0:00:14.9]} 21... Nxd3 {[%clk 0:02:14.6]} 22. Qxd3
{[%clk 0:00:15.8]} 22... Qxb2+ {[%clk 0:02:15.7]} 23. Qc2 {[%clk 0:00:17.2]}
23... Qxa1 {[%clk 0:02:15.6]} 0-1

[Event "*** Biggest EVER Titled Tuesday"]
[Site "Chess.com"]
[Date "2018.04.17"]
[Round "2"]
[White "Paralinch"]
[Black "TregubovP"]
[Result "1/2-1/2"]
[WhiteElo "2809"]
[BlackElo "2562"]
[TimeControl "180+2"]
[EndTime "13:19:30 PDT"]
[Termination "Game drawn by repetition"]

1. e4 {[%clk 0:03:01.9]} 1... c5 {[%clk 0:02:51.1]} 2. Nf3 {[%clk 0:03:02.2]}
2... e6 {[%clk 0:02:50.8]} 3. d4 {[%clk 0:03:02.5]} 3... cxd4 {[%clk 0:02:51.3]}
4. Nxd4 {[%clk 0:03:04.4]} 4... Nc6 {[%clk 0:02:52.3]} 5. Nc3 {[%clk 0:03:05.3]}
5... Nf6 {[%clk 0:02:53.5]} 6. Ndb5 {[%clk 0:03:04.9]} 6... Bb4 {[%clk
0:02:54.4]} 7. Bf4 {[%clk 0:03:01.9]} 7... e5 {[%clk 0:02:43.7]} 8. Bg5 {[%clk
0:02:49.9]} 8... O-O {[%clk 0:02:41]} 9. a3 {[%clk 0:02:46.5]} 9... Be7 {[%clk
0:02:31.8]} 10. Bxf6 {[%clk 0:02:38.4]} 10... Bxf6 {[%clk 0:02:32.2]} 11. Nd5
{[%clk 0:02:32.4]} 11... Bg5 {[%clk 0:02:13.2]} 12. Be2 {[%clk 0:02:29.2]} 12...
d6 {[%clk 0:02:10.5]} 13. O-O {[%clk 0:02:16.2]} 13... a6 {[%clk 0:02:09.4]} 14.
Nbc3 {[%clk 0:02:17.4]} 14... Nd4 {[%clk 0:02:01.3]} 15. Bg4 {[%clk 0:02:15.9]}
15... Be6 {[%clk 0:02:00.9]} 16. h3 {[%clk 0:02:12]} 16... Rc8 {[%clk
0:02:01.4]} 17. Qd3 {[%clk 0:02:09.1]} 17... Rc5 {[%clk 0:01:27.9]} 18. Rad1
{[%clk 0:01:59.8]} 18... Bxd5 {[%clk 0:01:19.8]} 19. Nxd5 {[%clk 0:01:54.3]}
19... Rxc2 {[%clk 0:01:17]} 20. b4 {[%clk 0:01:54.8]} 20... g6 {[%clk
0:01:13.1]} 21. Ne3 {[%clk 0:01:23.2]} 21... Rc7 {[%clk 0:01:07]} 22. Nd5 {[%clk
0:01:23.7]} 22... Rc2 {[%clk 0:01:07.4]} 23. Ne3 {[%clk 0:01:24.8]} 23... Rc7
{[%clk 0:01:05.8]} 24. Nd5 {[%clk 0:01:21.6]} 24... Rc2 {[%clk 0:01:03.3]}
1/2-1/2

[Event "*** Biggest EVER Titled Tuesday"]
[Site "Chess.com"]
[Date "2018.04.17"]
[Round "2"]
[White "FMJoseHerrera"]
[Black "filali-oujda"]
[Result "1-0"]
[WhiteElo "2491"]
[BlackElo "2294"]
[TimeControl "180+2"]
[EndTime "13:19:52 PDT"]
[Termination "FMJoseHerrera won by checkmate"]

1. Nf3 {[%clk 0:03:01.9]} 1... c6 {[%clk 0:03:01.9]} 2. g3 {[%clk 0:03:03.8]}
2... d5 {[%clk 0:03:02.7]} 3. Bg2 {[%clk 0:03:05.7]} 3... g6 {[%clk 0:03:04.3]}
4. O-O {[%clk 0:03:06.9]} 4... Bg7 {[%clk 0:03:06.2]} 5. d3 {[%clk 0:03:08.5]}
5... e6 {[%clk 0:03:07.8]} 6. c3 {[%clk 0:03:10.1]} 6... Ne7 {[%clk 0:03:09.2]}
7. a3 {[%clk 0:03:10.3]} 7... O-O {[%clk 0:03:11.1]} 8. b4 {[%clk 0:03:11.1]}
8... Nd7 {[%clk 0:03:11.2]} 9. Bb2 {[%clk 0:03:12]} 9... c5 {[%clk 0:03:12.1]}
10. Nbd2 {[%clk 0:03:12.6]} 10... b6 {[%clk 0:03:13.2]} 11. Qb3 {[%clk
0:03:13.1]} 11... Bb7 {[%clk 0:03:14.3]} 12. Rac1 {[%clk 0:03:13.4]} 12... Rc8
{[%clk 0:03:15.7]} 13. Rfd1 {[%clk 0:03:14.4]} 13... Nf5 {[%clk 0:03:15.4]} 14.
Qa2 {[%clk 0:03:15]} 14... Qe7 {[%clk 0:03:15.3]} 15. Qa1 {[%clk 0:03:15.4]}
15... cxb4 {[%clk 0:03:11.4]} 16. axb4 {[%clk 0:03:15.2]} 16... a6 {[%clk
0:03:01.4]} 17. Nb3 {[%clk 0:03:13]} 17... e5 {[%clk 0:02:54.8]} 18. e4 {[%clk
0:02:49.8]} 18... dxe4 {[%clk 0:02:49.4]} 19. dxe4 {[%clk 0:02:51.7]} 19... Bxe4
{[%clk 0:02:50]} 20. Qxa6 {[%clk 0:02:43]} 20... Ra8 {[%clk 0:02:31.8]} 21. Qe2
{[%clk 0:02:43.2]} 21... Ra2 {[%clk 0:02:27]} 22. Qxe4 {[%clk 0:02:31.9]} 22...
Rxb2 {[%clk 0:02:22.6]} 23. Nbd2 {[%clk 0:02:33.1]} 23... Nd6 {[%clk 0:02:21.7]}
24. Qe1 {[%clk 0:02:28.6]} 24... e4 {[%clk 0:02:20.8]} 25. Nd4 {[%clk
0:02:25.5]} 25... f5 {[%clk 0:02:19.5]} 26. Ra1 {[%clk 0:02:01.2]} 26... Ne5
{[%clk 0:02:13.9]} 27. Nf1 {[%clk 0:01:48.9]} 27... Ndc4 {[%clk 0:02:01.9]} 28.
h3 {[%clk 0:01:48.7]} 28... Kh8 {[%clk 0:02:00.5]} 29. b5 {[%clk 0:01:47.3]}
29... Qc5 {[%clk 0:01:59]} 30. Ra7 {[%clk 0:01:47.3]} 30... Nd3 {[%clk 0:01:56]}
31. Rxd3 {[%clk 0:01:42.5]} 31... exd3 {[%clk 0:01:57.8]} 32. Rxg7 {[%clk
0:01:44]} 32... d2 {[%clk 0:01:49.6]} 33. Qe2 {[%clk 0:01:37.3]} 33... Qxd4
{[%clk 0:01:44.6]} 34. cxd4 {[%clk 0:01:37.6]} 34... Kxg7 {[%clk 0:01:45.8]} 35.
Bf3 {[%clk 0:01:33.1]} 35... Rc8 {[%clk 0:01:33.6]} 36. Qe7+ {[%clk 0:01:33.3]}
36... Kh6 {[%clk 0:01:33.8]} 37. g4 {[%clk 0:01:27.9]} 37... g5 {[%clk
0:01:25.9]} 38. Qf6# {[%clk 0:01:26.1]} 1-0